Cogmind - Beta 15 *** ADVENTURER MODE // 2025.07.31 @ 12:49:36 Player: Gentle Jesus Result: Self-destructed Performance ------------- Evolutions (1) 500 Regions Visited (4) 800 Robots Destroyed (36) 180 Value Destroyed (711) 711 Prototype IDs (0) 0 Alien Tech Used (0) 0 Bonus (0) 0 TOTAL SCORE: 2191 Bonus ------- None Cogmind --------- Core Integrity 217/400 Matter 300/300 Energy 250/250 System Corruption 0% Temperature Cool (0) Movement Hovering (60) Location -9/Mines Parts ------- > --- POWER (1) -------- Ion Engine > --- PROPULSION (4) --- Hover Unit > --- UTILITY (2) ------ Improved Heat Sink Visual Processing Unit > --- WEAPON (2) ------- (None) > --- INVENTORY (5) ---- Terrain Scan Processor Mining Laser Mining Laser Peak State ------------ > --- POWER ------------ Ion Engine > --- PROPULSION ------- Hover Unit Hover Unit Hover Unit > --- UTILITY ---------- Visual Processing Unit Improved Terrain Scanner > --- WEAPON ----------- Spread Laser Mining Laser > --- INVENTORY -------- Improved Heat Sink Terrain Scan Processor [Rating: 12] Favorites ----------- Power Ion Engine Engine Ion Engine Propulsion Wheel Wheel Wheel Hover Unit Hover Unit Utility Medium Storage Unit Device Improved Terrain Scanner Storage Medium Storage Unit Processor Visual Processing Unit Weapon Spread Laser Energy Gun Spread Laser Special Weapon Mining Laser Build | -11 -10 -10 -9 -9 ------- Run | Yrd Mat Min Mat Min Slots Evolved 2 | . . . 2 . Power . | . . . . . Propulsion 2 | . . . 2 . Utility . | . . . . . Weapon . | . . . . . Parts Attached 22 | 6 5 1 9 1 Power 4 | 1 . 1 2 . Engine 4 | 1 . 1 2 . Core . | . . . . . Reactor . | . . . . . Propulsion 7 | 2 2 . 3 . Treads . | . . . . . Leg . | . . . . . Wheel 4 | 2 2 . . . Hover 3 | . . . 3 . Flight . | . . . . . Utility 6 | 1 2 . 2 1 Device 3 | . 1 . 1 1 Storage 2 | 1 1 . . . Processor 1 | . . . 1 . Hackware . | . . . . . Protection . | . . . . . Artifact . | . . . . . Weapon 5 | 2 1 . 2 . Energy Gun 3 | 2 . . 1 . Energy Cannon . | . . . . . Ballistic Gun . | . . . . . Ballistic Cannon . | . . . . . Launcher . | . . . . . Special Weapon 2 | . 1 . 1 . Impact Weapon . | . . . . . Slashing Weapon . | . . . . . Piercing Weapon . | . . . . . Special Melee Weapon . | . . . . . Unidentified Prototypes . | . . . . . Parts Lost 14 | . 5 . 5 4 Power 2 | . 1 . 1 . Propulsion 6 | . 2 . 2 2 Utility 3 | . 1 . 1 1 Weapon 3 | . 1 . 1 1 Highest Loss Streak 5 | . 5 . 4 2 To Critical Strikes . | . . . . . Average Backups 4 | . 5 5 5 3 Power . | . . . . . Propulsion 1 | . 3 2 2 . Utility 2 | . 2 3 3 1 Weapon . | . . . . 2 Tool/Special . | . . . . . Unused Backups 4 | . . . 3 1 Power 1 | . . . 1 . Propulsion . | . . . . . Utility 3 | . . . 2 1 Weapon . | . . . . . Tool/Special . | . . . . . Average Slot Usage (%) 67 | . 81 68 60 70 Engine 11 | . 12 11 10 11 Wheel 17 | . 26 28 15 . Hover 4 | . . . . 26 Device 3 | . 1 . 2 10 Storage 8 | . 14 14 7 . Processor 4 | . . . 6 11 Energy Gun 12 | . 25 . 9 11 Special Weapon 5 | . . 14 6 . Peak Build Rating 12 | 6 8 5 12 11 Average Rating 7 | 5 6 4 8 10 On Entrance 5 | . 6 4 5 12 Naked Turns . | . . . . . Heaviest Build 21 | 13 18 14 21 9 Greatest Support 26 | 20 26 26 26 18 Greatest Overweight (x) 2 | 1 1 . 2 . Average Overweight (x) . | . . . . . Largest Inventory Capacity 10 | 8 10 10 10 5 Average Capacity 8 | 7 8 10 8 5 Most Carried 9 | 3 7 5 9 4 Average Carried 4 | . 5 5 5 3 Final Capacity 10 | 8 10 10 5 5 Final Carried 5 | 3 5 5 3 3 Class Distribution -------------------- 84% | Mutant 15% | Scavenger-Mutant Dominant Class ---------------- Mutant | -10/Materials Mutant | -10/Mines Mutant | -9/Materials Scavenger-Mutant | -9/Mines Resources | -11 -10 -10 -9 -9 ----------- Run | Yrd Mat Min Mat Min Matter Collected 463 | 260 25 5 133 40 Remotely . | . . . . . Salvage Created 816 | 176 199 . 341 100 Parts 48 | 6 10 2 22 8 Haulers Intercepted . | . . . . . Recyclers Shooed 1 | . 1 . . . Parts Field Recycled . | . . . . . Retrieved Matter . | . . . . . Parts Self-Destructed . | . . . . . Prevented . | . . . . . Kills | -11 -10 -10 -9 -9 ------- Run | Yrd Mat Min Mat Min Combat Hostiles Destroyed 26 | . 8 . 11 7 Guns 26 | . 8 . 11 7 Classes Destroyed 9 | 2 3 1 2 1 Worker 1 | . . 1 . . Builder 1 | . . . 1 . Tunneler 5 | 5 . . . . Recycler 1 | 1 . . . . Watcher 3 | . 1 . 2 . Swarmer 13 | . 6 . 3 4 Grunt 10 | . 2 . 6 2 Sentry 2 | . . . 2 . Assembled 1 | . . . . 1 Best Kill Streak 5 | 5 3 1 5 4 Combat Bots Only 4 | . 3 . 4 4 Max Kills in Single Turn 2 | 1 1 1 2 1 Gunslinging . | . . . . . Exploded . | . . . . . Melee . | . . . . . Uniques/NPCs Destroyed . | . . . . . Combat | -11 -10 -10 -9 -9 -------- Run | Yrd Mat Min Mat Min Hostile Shots Fired 129 | . 46 . 58 25 Missed 33 | . 8 . 16 9 Hits 96 | . 38 . 42 16 Melee 1 | . . . . 1 Projectile 95 | . 38 . 42 15 AOE 1 | . . . . 1 Critical Strikes 1 | . . . 1 . Damage Taken 937 | . 296 . 490 151 Core 226 | . 43 . 160 23 Absorbed by Shields . | . . . . . Ignored by Resistances 281 | . 92 . 142 47 Core Remaining (%) 91 | 100 . 82 . . Volleys Fired 109 | 14 26 2 51 16 Largest 2 | 2 2 1 2 1 Hottest 165 | 90 90 100 165 65 Shots Fired 150 | 28 51 2 53 16 Gun 141 | 28 51 . 46 16 Cannon . | . . . . . Launcher . | . . . . . Special 9 | . . 2 7 . Kinetic . | . . . . . Thermal 150 | 28 51 2 53 16 Explosive . | . . . . . Electromagnetic . | . . . . . Robot Hit Streak 23 | 11 14 5 23 17 Robot Miss Streak 4 | 2 3 . 4 4 Penetration Max . | . . . . . Secondary Targets 1 | . 1 . . . Max Gunslinging Chain 1 | . 1 . . . Shots Hit Robots 104 | 21 35 1 33 14 Core Hits 102 | 7 13 1 53 28 Critical Kills . | . . . . . Critical Parts Destroyed . | . . . . . Critical Strikes 4 | 2 2 . . . Burn 4 | 2 2 . . . Melee Attacks . | . . . . . Impact . | . . . . . Slashing . | . . . . . Piercing . | . . . . . Sneak Attacks . | . . . . . Combat Hostiles . | . . . . . Follow-up Attacks . | . . . . . Damage Inflicted 1503 | 250 417 24 575 237 Guns 1397 | 250 409 . 501 237 Cannons . | . . . . . Explosions 50 | . . . 50 . Melee . | . . . . . Ramming 8 | . 8 . . . Kinetic . | . . . . . Thermal 1495 | 250 409 24 575 237 Explosive . | . . . . . Electromagnetic . | . . . . . Impact . | . . . . . Slashing . | . . . . . Piercing . | . . . . . Highest Corruption 1 | . 1 1 . . Average Corruption 1 | . 1 1 . . Corruption Purged . | . . . . . Corruption Blocked . | . . . . . Effects 4 | . 2 2 . . Message Errors 2 | . . 2 . . Matter Fused 1 | . 1 . . . Data Loss (major) 1 | . 1 . . . Overload Shots . | . . . . . Overflow Damage . | . . . . . Projectiles . | . . . . . Explosions . | . . . . . Melee . | . . . . . Knockbacks . | . . . . . Impact . | . . . . . Kinetic . | . . . . . Secondary . | . . . . . Self-Inflicted Damage 72 | . 3 . 69 . Shots 1 | . . . 1 . Rammed 3 | . 3 . . . Targets Rammed 3 | . 3 . . . Kicked . | . . . . . Crushed . | . . . . . Highest Temperature 412 | 150 412 20 320 168 Average Temperature 98 | 52 158 12 85 58 Received Heat Transfer 471 | . 150 . 288 33 Effects 10 | . 6 . 4 . Shutdowns 1 | . 1 . . . Energy Bleed 2 | . 1 . 1 . Interference 2 | . . . 2 . Matter Decay 1 | . . . 1 . Short Circuit 1 | . 1 . . . Damage (major) 3 | . 3 . . . Siege Activations . | . . . . . Martial Activations . | . . . . . Shielding Activations . | . . . . . Robots Disrupted . | . . . . . Combat Hostiles . | . . . . . Robots Corrupted . | . . . . . Combat Hostiles . | . . . . . Parts Fried . | . . . . . Impact Corruptions . | . . . . . Robots Melted . | . . . . . Combat Hostiles . | . . . . . Parts Melted 7 | 2 4 . 1 . Heat Transferred 3126 | 817 1239 50 730 290 Parts Sabotaged . | . . . . . Parts Stolen . | . . . . . Parts Stripped . | . . . . . Power Chain Reactions . | . . . . . Alert | -11 -10 -10 -9 -9 ------- Run | Yrd Mat Min Mat Min Maximum Alert Level 1 | . . . 1 . Low Security (%) 98 | 100 100 100 96 100 Level 1 1 | . . . 3 . Level 2 . | . . . . . Level 3 . | . . . . . Level 4 . | . . . . . Level 5 . | . . . . . High Security . | . . . . . Max Security . | . . . . . Peak Influence 207 | 5 102 18 207 150 Initial 50 | . . 13 . 50 Average 69 | 1 44 3 102 118 Influence Increases 802 | 30 212 6 414 140 Destroy 0b10 Robot/C 500 | . 160 . 220 120 Destroy 0b10 Robot/NC 55 | 30 5 5 15 . Destroy Leader 106 | . 32 . 54 20 Successful Hack 10 | . . . 10 . Disable Machine 27 | . . . 27 . Destroy Structure 44 | . . 1 43 . Partial Spotted 15 | . . . 15 . Lose Combat Pursuer 45 | . 15 . 30 . Influence Decreases 722 | 30 170 48 260 214 Entered New Map 133 | . . 29 . 104 Time Decay 449 | 30 120 19 210 70 Lost Part 140 | . 50 . 50 40 Squads Dispatched 2 | . 1 . 1 . Investigation 2 | . 1 . 1 . Extermination . | . . . . . Reinforcement . | . . . . . Assault . | . . . . . Garrison . | . . . . . Intercept . | . . . . . Searches Triggered . | . . . . . Construction Impeded . | . . . . . Haulers Reinforced . | . . . . . Active Scanning Responses . | . . . . . Cargo Convoy Interrupts . | . . . . . Stealth | -11 -10 -10 -9 -9 --------- Run | Yrd Mat Min Mat Min Distress Signals 3 | . 3 . . . Communications Jammed . | . . . . . Distress Signals . | . . . . . Times Spotted 45 | . 12 1 15 17 Peak Tracking Total 16 | . 4 2 5 16 Tactical Retreats 3 | . 1 . 1 1 Traps | -11 -10 -10 -9 -9 ------- Run | Yrd Mat Min Mat Min Traps Triggered 1 | . 1 . . . Indirectly . | . . . . . Trap Hack Attempts . | . . . . . Triggered . | . . . . . Disarmed . | . . . . . Reprogrammed . | . . . . . Reused . | . . . . . Traps Extracted . | . . . . . Installed . | . . . . . Triggered . | . . . . . Machines | -11 -10 -10 -9 -9 ---------- Run | Yrd Mat Min Mat Min Machines Disabled 3 | . . . 3 . Max in Single Turn 3 | . . . 3 . Machines Repaired . | . . . . . Machines Dismantled . | . . . . . Machines Sabotaged . | . . . . . Overloaded Fab Kills . | . . . . . Hacking | -11 -10 -10 -9 -9 --------- Run | Yrd Mat Min Mat Min Machines Accessed 3 | . 1 . 2 . Terminals 1 | . 1 . . . Fabricators . | . . . . . Repair Stations . | . . . . . Recycling Units 1 | . . . 1 . Scanalyzers 1 | . . . 1 . Garrison Access . | . . . . . Total Hacks 6 | . 2 . 4 . Successful 4 | . . . 4 . Failed 2 | . 2 . . . Catastrophic 1 | . 1 . . . Database Lockouts . | . . . . . Manual 2 | . 2 . . . Terminals 2 | . 2 . . . Fabricators . | . . . . . Repair Stations . | . . . . . Recycling Units 1 | . . . 1 . Scanalyzers 3 | . . . 3 . Garrison Access . | . . . . . Terminal Hacks . | . . . . . Fabricator Hacks . | . . . . . Repair Station Hacks . | . . . . . Recycling Unit Hacks 1 | . . . 1 . Report Inventory 1 | . . . 1 . Scanalyzer 3 | . . . 3 . Insert Component 2 | . . . 2 . Analyze 1 | . . . 1 . Garrison Access Hacks . | . . . . . Unauthorized Hacks . | . . . . . Terminals . | . . . . . Fabricators . | . . . . . Repair Stations . | . . . . . Recycling Units . | . . . . . Scanalyzers . | . . . . . Garrison Access . | . . . . . Data Cores Recovered . | . . . . . Used . | . . . . . Hacking Detections 3 | . 1 . 2 . Full Trace Events 2 | . 1 . 1 . Feedback Events 1 | . 1 . . . Corruption 1 | . 1 . . . Feedback Blocked . | . . . . . Robot Schematics Acquired . | . . . . . Robots Built . | . . . . . Authchips . | . . . . . Time . | . . . . . Total Robot Build Rating . | . . . . . Part Schematics Acquired 1 | . . . 1 . Parts Built . | . . . . . Authchips . | . . . . . Time . | . . . . . Total Part Build Rating . | . . . . . Parts Repaired . | . . . . . Time . | . . . . . Parts Recycled . | . . . . . Recycled Matter . | . . . . . Retrieved Matter . | . . . . . Retrieved Components . | . . . . . Parts Scanalyzed 1 | . . . 1 . Part Schematics Acquired 1 | . . . 1 . Parts Damaged . | . . . . . Bothacking | -11 -10 -10 -9 -9 ------------ Run | Yrd Mat Min Mat Min Used RIF Installer . | . . . . . Robots Hacked . | . . . . . Non-combat . | . . . . . Combat . | . . . . . Robot Hacks Applied . | . . . . . Relay Couplers Released . | . . . . . Fabnet Peak Effective % . | . . . . . Robots Rewired . | . . . . . Allies Hacked . | . . . . . Hacks Repelled . | . . . . . Allies | -11 -10 -10 -9 -9 -------- Run | Yrd Mat Min Mat Min Total Allies . | . . . . . Largest Group . | . . . . . Highest-Rated Group . | . . . . . Highest-Rated Ally . | . . . . . Total Orders . | . . . . . Ally Attacks . | . . . . . Total Damage . | . . . . . Kills . | . . . . . Allies Corrupted . | . . . . . Allies Melted . | . . . . . Intel | -11 -10 -10 -9 -9 ------- Run | Yrd Mat Min Mat Min Active Infowar (turns) 449 | . . . 303 146 Optics 447 | . . . 301 146 Terrain 155 | . . . 146 9 Robot Analysis Total . | . . . . . Derelict Logs Recovered 2 | . . 2 . . Drone Launches . | . . . . . Drone Recoveries . | . . . . . Exploration | -11 -10 -10 -9 -9 ------------- Run | Yrd Mat Min Mat Min Turns Passed 1182 | 142 245 128 521 146 Spaces Moved 996 | 111 187 132 385 181 Core 65 | 2 . . 63 . Treads . | . . . . . Legs . | . . . . . Wheels 741 | 109 187 132 313 . Hover 190 | . . . 9 181 Flight . | . . . . . Fastest Speed 50 | 50 80 90 52 52 Average Speed 84 | 79 81 90 99 55 Slowest Speed 150 | 100 95 90 150 56 Overloaded Moves . | . . . . . Propulsion Burnouts . | . . . . . Robots Hopped . | . . . . . Potential Cave-ins . | . . . . . Cave-ins Triggered . | . . . . . Exploration Rate (%) 22 | 5 32 24 25 27 Regions Visited 4 Branch Regions 2 Pre-discovered Areas 1 | . . 1 . . Known Exits Taken . | . . . . . Unknown Exits Taken 4 | 1 1 1 1 . Scrap Searched . | . . . . . Spaces Dug 6 | . . 1 5 . Terrain Destroyed 55 | . . 1 54 . Melee . | . . . . . Projectile 7 | . . 1 6 . AOE 48 | . . . 48 . Terrain Rammed . | . . . . . Walls Destroyed . | . . . . . Machines Disabled . | . . . . . Actions | -11 -10 -10 -9 -9 --------- Run | Yrd Mat Min Mat Min Total 1157 | 133 227 134 452 211 Wait 13 | . 1 . . 12 Move 992 | 110 186 131 384 181 Hop . | . . . . . Pick Up 12 | 3 4 . 5 . Fast Attach 15 | 6 3 1 5 . Attach 6 | . 2 . 3 1 Detach 1 | . . . . 1 Swap 2 | . . . 2 . Drop 4 | . 2 . 2 . Fire 109 | 14 26 2 51 16 Melee . | . . . . . Ram 3 | . 3 . . . Kick . | . . . . . Crush . | . . . . . Escape Stasis . | . . . . . Rewire . | . . . . . Trap . | . . . . . Miscellaneous . | . . . . . Route ------- -11/Scrapyard -10/Materials -10/Mines (discovered 2 exits: *Mat x2) -9/Materials -9/Mines (discovered 1 exit: [*Mat]) History --------- Turn | Location | Event 11 | -11/Scrapyard | Discovered new exit (range 16) 143 | -11/Scrapyard | Entered Materials 300 | -10/Materials | Build established: Mutant 366 | -10/Materials | Discovered new exit (range 13) 388 | -10/Materials | Entered Mines 398 | -10/Mines | Learned Materials security intel 418 | -10/Mines | Lost 5 parts (1p2n1u1w) 424 | -10/Mines | Learned location of Zion (-7) 453 | -10/Mines | Discovered new exit (range 12) 455 | -10/Mines | Met a Derelict bent on vengeance 501 | -10/Mines | Discovered new exit (range 8) 516 | -10/Mines | Entered Materials 516 | -9/Materials | Evolved 2 slots: Propulsion x2 902 | -9/Materials | Lost 4 parts (1p1n1u1w) 1008 | -9/Materials | Discovered new exit (range 11) 1037 | -9/Materials | Entered Mines 1068 | -9/Mines | Discovered new exit (range 11) 1103 | -9/Mines | Assembled infested the area 1108 | -9/Mines | Assisted by a Guerilla fighting off Assembled 1183 | -9/Mines | Self-destructed Last Messages --------------- come on!" K-01 Serf collects debris. FR-648(h) exits level. K-01 Serf collects debris. as-68591 sneak attacks. U-05 Engineer system corrupted by crushing effect. U-05 Engineer knocked back. U-05 Engineer system terminally corrupted. as-68591 destroyed. A derelict emerges from the shadows: "What are you doing alone down here?" 7B-ZR9(g): "Well, at least you look like you can take care of yourself!" 7B-ZR9(g): "I have the funny feeling that things are about to get a lot worse around here, see you around!" 7B-ZR9(g) slips back into the shadows. Spread Laser destroyed. Hover Unit destroyed. Map ----- +----------------------------------------------------+ | | | | | ??????????????????????????????????????? | | ??????????????????????????????????????? | | ??????????????????????????????????????? | | ??????????????????????????????????????? | | ??????????????????????????????????????? | | ??????????????????????????????????????? | | ??????????????????????????????????????? | | ??????????????????????????????????????? | | ??????????????????????????????????????? | | ??????????????????????????????????????? | | ??????????????????????????????????????? | | ??# ??????????????????????????????????? | | ??# """ #####?????????????????????????? | | ??# """ #?????????????????????????? | | ??# ### #?????????????????????????? | | ??##??????# #?????????###?????????????? | | ??????????# #????????# ##????????????? | | ??????????# #???????? ###??????????? | | ??????????# #???????# ##?????????? | | ??????????# #?????## #?????????? | | ??????????# ##?#### #####?????? | | ??????????# # # ## #?????? | | ??????##### #?????? | | ??????# @ ##??????????? | | ??????# d ##?????????? | | ??????# ## ## #?????????? | | ??????# ########## #?????????? | | ??????# #??????## ### ##?????????? | | ??????# #?????## ##???###??????????? | | ?????## ##????# #?????????????????? | | ???### #????# ##????????????????? | | ??## ##????# ##???????????????? | | ??# ##?????## #???????????????? | | ??# ##???????# #???????????????? | | ??## ##???????## #???????????????? | | ???####????????# ##??????????????? | | ???????????????# ##?????????????? | | ???????????????# ##????????????? | | ?????#####?????## % ##???????????? | | ????## ##????## #???????????? | | ???## ##???# ## #???????????? | | ???# [ * ##?## ##?###???????????? | | ???# [ #?# ##????????????????? | | ???## = #?# #?????????????????? | | ????### ### ##????????????????? | | ??????## ### ##???????????????? | | ???????# #### ###?????????????? | | ????#??# #??# ##????????????? | +----------------------------------------------------+ Best States ------------- Heat Dissipation 42 Energy Generation 12 Energy Capacity 265 Matter Stores 300 Matter Capacity 300 Sight Range 18 Terrain Scan Range 16 Terrain Scan Density 10 Resistance: KI 20 Resistance: TH 20 Resistance: EX 20 Resistance: EM 20 Resistance: I 20 Resistance: S 20 Resistance: P 20 Evasion (%) 54 Offensive Hacking 10 Item Schematics ----------------- Terrain Scan Processor | -9/Materials | Scanalyzed Robot Schematics ------------------ None Fabricated ------------ Nothing Repaired ---------- Nothing Alien Tech Used ----------------- None Achievements -------------- None Challenges ------------ None Game ------ Seed GreatGaussRedirector Manual? 0 Play Time 00:11:22 Cumulative 124.9 hours Start 2025.07.31 @ 12:31:47 End 2025.07.31 @ 12:49:36 Sessions 3 Manual Loads 0 Difficulty Adventurer Special Mode None Game No. 102 Rogue 0 Adventurer 102 Explorer 0 Win Type - Total 3 Types 3/0/0/0/0/0/0/0/0/0 Lore% 54 Gallery% 56 Achievement% 53 Wizard Run 0 Options --------- Layout 1 ASCII 0 Keyboard 0 Movement Arrows Keybinds 0 Fullscreen 1 Font 32/SmallcapsGlow Map View 50x40 Zoom Use 8% Tactical HUD 0 Map Filters NONE Filters NONE Steam 1 RUN: a6e3d7c1-35be-4f7d-a862-19a08cbb88ad